fUST/lending_fUST_20251109
["ID","MTS","AMOUNT","RATE_DAILY","PERIOD"]
[393467089,1762692641436,-500.0,0.0002597,2]
[393467090,1762692641445,-500.0,0.0002597,2]
[393467091,1762692641454,-500.0,0.0002597,2]
[393467092,1762692641463,-500.0,0.0002597,2]
[393467093,1762692641472,-209.99386774,0.0002597,2]
[393467094,1762692641482,-500.0,0.0002597,2]
[393467095,1762692641494,-500.0,0.0002597,2]
[393467096,1762692641503,-500.0,0.0002597,2]
[393467097,1762692641513,-500.0,0.0002597,2]
[393467098,1762692641522,-500.0,0.0002597,2]
[393467099,1762692641533,-500.0,0.0002597,2]
[393467100,1762692641542,-500.0,0.0002597,2]
[393467101,1762692641551,-500.0,0.0002597,2]
[393467102,1762692641560,-500.0,0.0002597,2]
[393467103,1762692641571,-500.0,0.0002597,2]
[393467104,1762692641580,-500.0,0.0002597,2]
[393467105,1762692641590,-500.0,0.0002597,2]
[393467106,1762692641599,-500.0,0.0002597,2]
[393467107,1762692641610,-500.0,0.0002597,2]
[393467108,1762692641619,-500.0,0.0002597,2]
[393467109,1762692641628,-500.0,0.0002597,2]
[393467110,1762692641637,-500.0,0.0002597,2]
[393467111,1762692641647,-500.0,0.0002597,2]
[393467112,1762692641656,-500.0,0.0002597,2]
[393467113,1762692641665,-500.0,0.0002597,2]
[393467114,1762692641675,-500.0,0.0002597,2]
[393467115,1762692641685,-500.0,0.0002597,2]
[393467116,1762692641694,-500.0,0.0002597,2]
[393467117,1762692641703,-303.54076495,0.0002597,2]
[393467142,1762692645323,-1482.00560542,0.00025862,2]
[393467144,1762692645333,-196.45923505,0.0002597,2]
[393467146,1762692645342,-500.0,0.0002597,2]
[393467148,1762692645351,-500.0,0.0002597,2]
[393467150,1762692645361,-500.0,0.0002597,2]
[393467152,1762692645370,-500.0,0.0002597,2]
[393467154,1762692645380,-171.53515955,0.0002597,2]
[393467295,1762692646881,-34.10544362,0.0002597,2]
[393467324,1762692745484,152.66808323,0.0003703,90]
[393467346,1762693554093,-204.35415358,0.00024363,2]
[393467347,1762693554112,-43.26779262,0.00025204,2]
[393467348,1762693591084,-121.33779633,0.00025204,2]
[393467349,1762693591105,-233.02972695,0.00025657,2]
[393467351,1762693756096,-297.9204981,0.00023642,2]
[393467352,1762693756120,-19.55393021,0.00024049,2]
[393467353,1762693773447,311.07942963,0.00025,120]
[393467354,1762693819907,504.49281392,0.0003703,60]
[393467367,1762693831702,-233.682574,0.00023571,4]
[393467369,1762693831714,-266.317426,0.00023809,4]
[393467382,1762693837552,-233.682574,0.00023571,4]
[393467383,1762693837561,-910.365148,0.00023809,4]
[393467385,1762693837571,-130.44606979,0.00024049,2]
[393467386,1762693837580,-221.55106068,0.00025643,2]
[393467387,1762693837606,-1046.07512822,0.00025643,2]
[393467388,1762693837616,-168.20441678,0.00025643,2]
[393467389,1762693837625,-168.20441677,0.00025672,2]
[393467390,1762693837635,-168.20441677,0.000257,2]
[393467391,1762693837645,-316.0,0.00025718,2]
[393467392,1762693837655,-168.20441677,0.00025729,2]
[393467393,1762693837665,-399.90919747,0.0002573,2]
[393467394,1762693837675,-363.22,0.00025732,10]
[393467395,1762693837685,-1200.0,0.0002574,2]
[393467396,1762693837694,-300.0,0.00025741,2]
[393467397,1762693837703,-300.0,0.00025741,2]
[393467398,1762693837713,-300.0,0.00025741,2]
[393467399,1762693837722,-300.0,0.00025741,2]
[393467400,1762693837732,-435.86,0.00025741,10]
[393467401,1762693837741,-101.09094645,0.00025741,2]
[393467406,1762693839907,-398.90905355,0.00025741,2]
[393467407,1762693839918,-304.01533314,0.00025741,2]
[393467409,1762693839964,-195.98466686,0.00025741,2]
[393467411,1762693839975,-500.0,0.00025741,2]
[393467412,1762693839984,-207.8914152,0.00025741,2]
[393467414,1762693839993,-500.0,0.00025741,2]
[393467415,1762693840002,-500.0,0.00025741,2]
[393467416,1762693840011,-500.0,0.00025741,2]
[393467417,1762693840021,-500.0,0.00025741,2]
[393467418,1762693840030,-500.0,0.00025741,2]
[393467419,1762693840040,-500.0,0.00025741,2]
[393467420,1762693840050,-500.0,0.00025741,2]
[393467421,1762693840060,-236.79985544,0.00025741,2]
[393467422,1762693840070,-315.41333841,0.00025741,2]
[393467423,1762693840081,-12.30158725,0.00025741,2]
[393467424,1762693840091,-500.0,0.00025741,2]
[393467425,1762693840101,-500.0,0.00025741,2]
[393467426,1762693840110,-500.0,0.00025741,2]
[393467427,1762693840120,-600.37116869,0.00025741,2]
[393467428,1762693840129,-500.0,0.00025741,2]
[393467429,1762693840139,-500.0,0.00025741,2]
[393467430,1762693840149,-500.0,0.00025741,2]
[393467431,1762693840158,-500.0,0.00025741,2]
[393467432,1762693840168,-500.0,0.00025741,2]
[393467433,1762693840178,-500.0,0.00025741,2]
[393467434,1762693840188,-500.0,0.00025741,2]
[393467435,1762693840197,-500.0,0.00025741,2]
[393467436,1762693840206,-500.0,0.00025741,2]
[393467437,1762693840217,-500.0,0.00025741,2]
[393467438,1762693840227,-500.0,0.00025741,2]
[393467439,1762693840238,-394.68404436,0.00025741,2]
[393467440,1762693840247,-586.29681652,0.00025741,2]
[393467441,1762693840257,-500.0,0.00025741,2]
[393467442,1762693840267,-500.0,0.00025741,2]
[393467443,1762693840277,-500.0,0.00025741,2]
[393467444,1762693840287,-500.0,0.00025741,2]
[393467445,1762693840297,-500.0,0.00025741,2]
[393467446,1762693840307,-500.0,0.00025741,2]
[393467447,1762693840317,-500.0,0.00025741,2]
[393467448,1762693840327,-500.0,0.00025741,2]
[393467449,1762693840339,-500.0,0.00025741,2]
[393467450,1762693840349,-500.0,0.00025741,2]
[393467451,1762693840359,-500.0,0.00025741,2]
[393467452,1762693840369,-500.0,0.00025741,2]
[393467453,1762693840379,-500.0,0.00025741,2]
[393467454,1762693840389,-500.0,0.00025741,2]
[393467455,1762693840399,-500.0,0.00025741,2]
[393467456,1762693840409,-500.0,0.00025741,2]
[393467457,1762693840418,-500.0,0.00025741,2]
[393467458,1762693840428,-500.0,0.00025741,2]
[393467459,1762693840437,-500.0,0.00025741,2]
[393467460,1762693840447,-500.0,0.00025741,2]
[393467461,1762693840456,-500.0,0.00025741,2]
[393467462,1762693840465,-500.0,0.00025741,2]
[393467463,1762693840474,-500.0,0.00025741,2]
[393467464,1762693840484,-500.0,0.00025741,2]
[393467465,1762693840493,-500.0,0.00025741,2]
[393467466,1762693840503,-500.0,0.00025741,2]
[393467467,1762693840512,-500.0,0.00025741,2]
[393467468,1762693840522,-500.0,0.00025741,2]
[393467469,1762693840531,-500.0,0.00025741,2]
[393467470,1762693840540,-500.0,0.00025741,2]
[393467471,1762693840550,-586.89656342,0.00025741,2]
[393467472,1762693840560,-500.0,0.00025741,2]
[393467473,1762693840569,-500.0,0.00025741,2]
[393467474,1762693840579,-500.0,0.00025741,2]
[393467475,1762693840590,-500.0,0.00025741,2]
[393467476,1762693840600,-500.0,0.00025741,2]
[393467477,1762693840609,-500.0,0.00025741,2]
[393467478,1762693840619,-500.0,0.00025741,2]
[393467479,1762693840628,-500.0,0.00025741,2]
[393467480,1762693840639,-500.0,0.00025741,2]
[393467481,1762693840648,-500.0,0.00025741,2]
[393467482,1762693840658,-500.0,0.00025741,2]
[393467483,1762693840668,-231.28786565,0.00025741,2]
[393467487,1762693843176,-256.2,0.00025741,2]
[393467488,1762693843188,-12.51213435,0.00025741,2]
[393467489,1762693843199,-500.0,0.00025741,2]
[393467490,1762693843209,-500.0,0.00025741,2]
[393467491,1762693843219,-500.0,0.00025741,2]
[393467492,1762693843229,-500.0,0.00025741,2]
[393467493,1762693843239,-500.0,0.00025741,2]
[393467494,1762693843249,-500.0,0.00025741,2]
[393467495,1762693843260,-500.0,0.00025741,2]
[393467496,1762693843270,-500.0,0.00025741,2]
[393467497,1762693843279,-500.0,0.00025741,2]
[393467498,1762693843289,-500.0,0.00025741,2]
[393467499,1762693843300,-106.09008816,0.00025741,2]
[393467502,1762693843391,-27.51354958,0.00025741,2]
[393467503,1762693843404,-366.39636226,0.00025741,2]
[393467504,1762693843414,-500.0,0.00025741,2]
[393467505,1762693843423,-46.44341182,0.00025741,2]
[393467506,1762693843435,-453.55658818,0.00025741,2]
[393467507,1762693843444,-500.0,0.00025741,2]
[393467508,1762693843454,-500.0,0.00025741,2]
[393467509,1762693843463,-500.0,0.00025741,2]
[393467510,1762693843472,-570.34458312,0.00025741,2]
[393467511,1762693843481,-9042.20350614,0.00025742,2]
[393467543,1762693846108,-1290.0,0.00025742,2]
[393467572,1762694347451,10026.6148837,0.00025847,120]
[393467575,1762694467778,256.429729,0.00013699,2]
[393467577,1762694642305,427.89,0.0003,120]
[393467580,1762694860039,5000.0,0.00019616,4]
[393467581,1762694868528,5000.0,0.00019616,4]
[393467582,1762694883842,3087.06172906,0.00019616,4]
[393467583,1762694891698,1785.43218245,0.00019616,4]
[393467585,1762694946116,-6511.27990441,0.00018,2]
[393467586,1762694946139,-300.0,0.00020086,2]
[393467587,1762694946159,-300.0,0.00020086,2]
[393467588,1762694946180,-262.68640319,0.00020087,2]
[393467589,1762694946202,-256.429729,0.00020187,2]
[393467590,1762694946220,-450.0026893,0.000202,2]
[393467591,1762694946240,-600.0,0.00023,2]
[393467592,1762694946264,-300.0,0.00023607,2]
[393467593,1762694946283,-454.9908427,0.00023608,2]
[393467594,1762694946302,-366.0693188,0.00023608,2]
[393467595,1762694946323,-281.73746565,0.00023608,2]
[393467596,1762694946341,-507.12743817,0.00023608,2]
[393467597,1762694946360,-901.55989008,0.00023608,2]
[393467598,1762694946380,-210.2,0.00023632,10]
[393467599,1762694946400,-231.81075739,0.00023641,2]
[393467600,1762694946424,-581.8666506,0.00023641,2]
[393467601,1762694946446,-500.0,0.00023641,2]
[393467602,1762694946465,-500.0,0.00023641,2]
[393467603,1762694946581,-500.0,0.00023641,2]
[393467604,1762694946631,-500.0,0.00023641,2]
[393467605,1762694946651,-500.0,0.00023641,2]
[393467606,1762694946673,-154.96489382,0.00023641,2]
[393467607,1762694946693,-500.0,0.00023641,2]
[393467608,1762694946714,-500.0,0.00023641,2]
[393467609,1762694946734,-500.0,0.00023641,2]
[393467610,1762694946755,-500.0,0.00023641,2]
[393467611,1762694946777,-500.0,0.00023641,2]
[393467612,1762694946798,-500.0,0.00023641,2]
[393467613,1762694946820,-500.0,0.00023641,2]
[393467614,1762694946840,-500.0,0.00023641,2]
[393467615,1762694946865,-500.0,0.00023641,2]
[393467616,1762694946886,-500.0,0.00023641,2]
[393467617,1762694946907,-500.0,0.00023641,2]
[393467618,1762694946928,-500.0,0.00023641,2]
[393467619,1762694946948,-500.0,0.00023641,2]
[393467620,1762694946969,-500.0,0.00023641,2]
[393467621,1762694946989,-500.0,0.00023641,2]
[393467622,1762694947009,-500.0,0.00023641,2]
[393467623,1762694947030,-500.0,0.00023641,2]
[393467624,1762694947051,-500.0,0.00023641,2]
[393467625,1762694947071,-500.0,0.00023641,2]
[393467626,1762694947091,-500.0,0.00023641,2]
[393467627,1762694947112,-500.0,0.00023641,2]
[393467628,1762694947132,-500.0,0.00023641,2]
[393467629,1762694947151,-500.0,0.00023641,2]
[393467630,1762694947171,-500.0,0.00023641,2]
[393467631,1762694947191,-500.0,0.00023641,2]
[393467632,1762694947211,-500.0,0.00023641,2]
[393467633,1762694947231,-500.0,0.00023641,2]
[393467634,1762694947252,-500.0,0.00023641,2]
[393467635,1762694947272,-500.0,0.00023641,2]
[393467636,1762694947295,-500.0,0.00023641,2]
[393467637,1762694947316,-500.0,0.00023641,2]
[393467638,1762694947339,-500.0,0.00023641,2]
[393467639,1762694947360,-500.0,0.00023641,2]
[393467640,1762694947380,-500.0,0.00023641,2]
[393467641,1762694947401,-500.0,0.00023641,2]
[393467642,1762694947421,-500.0,0.00023641,2]
[393467643,1762694947441,-500.0,0.00023641,2]
[393467644,1762694947461,-500.0,0.00023641,2]
[393467645,1762694947481,-500.0,0.00023641,2]
[393467646,1762694947501,-500.0,0.00023641,2]
[393467647,1762694947520,-500.0,0.00023641,2]
[393467648,1762694947539,-500.0,0.00023641,2]
[393467649,1762694947561,-500.0,0.00023641,2]
[393467650,1762694947581,-500.0,0.00023641,2]
[393467651,1762694947601,-500.0,0.00023641,2]
[393467652,1762694947622,-500.0,0.00023641,2]
[393467653,1762694947643,-500.0,0.00023641,2]
[393467654,1762694947663,-500.0,0.00023641,2]
[393467655,1762694947684,-500.0,0.00023641,2]
[393467656,1762694947705,-500.0,0.00023641,2]
[393467657,1762694947724,-373.90038561,0.00023641,2]
[393467658,1762694947745,-500.0,0.00023641,2]
[393467659,1762694947766,-500.0,0.00023641,2]
[393467660,1762694947787,-500.0,0.00023641,2]
[393467661,1762694947809,-500.0,0.00023641,2]
[393467662,1762694947829,-504.7977665,0.00023641,2]
[393467663,1762694947849,-500.0,0.00023641,2]
[393467664,1762694947870,-500.0,0.00023641,2]
[393467665,1762694947903,-500.0,0.00023641,2]
[393467666,1762694947924,-500.0,0.00023641,2]
[393467667,1762694947945,-500.0,0.00023641,2]
[393467668,1762694947966,-500.0,0.00023641,2]
[393467669,1762694947985,-500.0,0.00023641,2]
[393467670,1762694948008,-500.0,0.00023641,2]
[393467671,1762694948030,-500.0,0.00023641,2]
[393467672,1762694948053,-500.0,0.00023641,2]
[393467673,1762694948074,-500.0,0.00023641,2]
[393467674,1762694948095,-500.0,0.00023641,2]
[393467675,1762694948116,-500.0,0.00023641,2]
[393467676,1762694948137,-500.0,0.00023641,2]
[393467677,1762694948161,-500.0,0.00023641,2]
[393467678,1762694948181,-500.0,0.00023641,2]
[393467679,1762694948201,-600.0,0.00023641,2]
[393467680,1762694948221,-500.0,0.00023641,2]
[393467681,1762694948242,-500.0,0.00023641,2]
[393467682,1762694948266,-500.0,0.00023641,2]
[393467683,1762694948287,-500.0,0.00023641,2]
[393467684,1762694948311,-500.0,0.00023641,2]
[393467685,1762694948335,-500.0,0.00023641,2]
[393467686,1762694948365,-500.0,0.00023641,2]
[393467687,1762694948386,-500.0,0.00023641,2]
[393467688,1762694948408,-500.0,0.00023641,2]
[393467689,1762694948429,-500.0,0.00023641,2]
[393467690,1762694948450,-500.0,0.00023641,2]
[393467691,1762694948470,-500.0,0.00023641,2]
[393467692,1762694948489,-500.0,0.00023641,2]
[393467693,1762694948509,-500.0,0.00023641,2]
[393467694,1762694948530,-500.0,0.00023641,2]
[393467695,1762694948552,-500.0,0.00023641,2]
[393467696,1762694948573,-500.0,0.00023641,2]
[393467697,1762694948599,-500.0,0.00023641,2]
[393467698,1762694948621,-500.0,0.00023641,2]
[393467699,1762694948643,-500.0,0.00023641,2]
[393467700,1762694948665,-500.0,0.00023641,2]
[393467701,1762694948687,-500.0,0.00023641,2]
[393467702,1762694948709,-500.0,0.00023641,2]
[393467703,1762694948730,-500.0,0.00023641,2]
[393467704,1762694948751,-500.0,0.00023641,2]
[393467705,1762694948773,-500.0,0.00023641,2]
[393467706,1762694948794,-500.0,0.00023641,2]
[393467707,1762694948817,-500.0,0.00023641,2]
[393467708,1762694948838,-500.0,0.00023641,2]
[393467709,1762694948861,-500.0,0.00023641,2]
[393467710,1762694948882,-44995.72888708,0.00023642,2]
[393467711,1762694949087,-2065.04483973,0.00023642,2]
[393467712,1762694949109,-238.4078851,0.00023642,2]
[393467713,1762694949130,-210.61495146,0.00023982,2]
[393467714,1762694949153,-252.24,0.00024132,10]
[393467715,1762694949174,-12172.78133169,0.00024142,2]
[393467716,1762694952114,-500.0,0.00023641,2]
[393467717,1762694952136,-500.0,0.00023641,2]
[393467718,1762694952156,-500.0,0.00023641,2]
[393467719,1762694952180,-500.0,0.00023641,2]
[393467720,1762694952199,-500.0,0.00023641,2]
[393467721,1762694952218,-500.0,0.00023641,2]
[393467722,1762694952238,-500.0,0.00023641,2]
[393467723,1762694952259,-500.0,0.00023641,2]
[393467724,1762694952278,-500.0,0.00023641,2]
[393467725,1762694952298,-500.0,0.00023641,2]
[393467726,1762694952318,-500.0,0.00023641,2]
[393467727,1762694952339,-500.0,0.00023641,2]
[393467728,1762694952360,-500.0,0.00023641,2]
[393467729,1762694952381,-500.0,0.00023641,2]
[393467730,1762694952401,-500.0,0.00023641,2]
[393467731,1762694952420,-500.0,0.00023641,2]
[393467732,1762694952440,-388.0,0.00023641,2]
[393467733,1762694952458,-27486.3346365,0.00024142,2]
[393467734,1762694952487,-6356.56485221,0.00024142,2]
[393467735,1762694952508,-1109.17291527,0.00024233,2]
[393467736,1762694952527,-164.05263835,0.00024234,2]
[393467737,1762694952548,-151.0,0.00024333,7]
[393467738,1762694952569,-151.0,0.00024333,7]
[393467739,1762694952589,-112.26409041,0.00024333,7]
[393467740,1762694967096,-38.73590959,0.00024333,7]
[393467741,1762694967118,-151.0,0.00024333,7]
[393467742,1762694967138,-151.0,0.00024333,7]
[393467743,1762694967158,-151.0,0.00024333,7]
[393467744,1762694967177,-151.0,0.00024333,2]
[393467745,1762694967197,-235.83312649,0.00024333,7]
[393467746,1762694967216,-101.43096392,0.00024333,2]
[393467778,1762695031827,-491.3107767,0.00021508,2]
[393467780,1762695031887,-1250.8060961,0.00021508,2]
[393467781,1762695031900,-779.99660122,0.00021508,2]
[393467830,1762695040289,-2674.18371638,0.00021508,2]
[393467831,1762695040299,-164.05263835,0.00024887,2]
[393467832,1762695040308,-257.8121296,0.0002492,2]
[393467833,1762695040318,-331.48457496,0.00025438,2]
[393467834,1762695040329,-300.0,0.00025535,2]
[393467835,1762695040339,-151.0,0.00025537,2]
[393467836,1762695040349,-151.0,0.00025537,2]
[393467837,1762695040358,-151.0,0.00025537,2]
[393467838,1762695040368,-151.0,0.00025537,2]
[393467839,1762695040378,-75.08499122,0.00025537,2]
[393467868,1762695307486,2000.0,0.00037022,60]
[393467872,1762695607067,1741.18284755,0.00037027,60]
[393467873,1762695671601,150.22255129,0.00037027,60]
[393467875,1762695768890,4000000.0,0.00037027,60]
[393467876,1762695858528,799.07,0.00032877,120]
[393467878,1762695948120,-1042.0,0.00021194,2]
[393467879,1762695948141,-262.68640319,0.00021194,2]
[393467880,1762695948162,-501.1549955,0.000229,2]
[393467881,1762695948181,-384.42707083,0.0002364,2]
[393467882,1762695948201,-523.22488236,0.00023642,2]
[393467883,1762695948222,-1200.0,0.0002379,2]
[393467884,1762695948241,-300.0,0.00023791,2]
[393467885,1762695948261,-300.0,0.00023791,2]
[393467886,1762695948281,-300.0,0.00023791,2]
[393467887,1762695948301,-2530.9279676,0.00023792,2]
[393467888,1762695948319,-1600.2078717,0.00023792,2]
[393467889,1762695948339,-507.34188192,0.00023792,2]
[393467890,1762695948358,-500.0,0.0002433,2]
[393467891,1762695948379,-500.0,0.0002433,2]
[393467892,1762695948400,-500.0,0.00024331,2]
[393467893,1762695948421,-167.19,0.00024332,2]
[393467894,1762695948442,-500.0,0.00024332,2]
[393467895,1762695948461,-500.0,0.00024373,2]
[393467896,1762695948481,-427.5324233,0.00024373,2]
[393467897,1762695948501,-330.78890939,0.00024442,2]
[393467898,1762695948524,-500.0,0.0002455,2]
[393467899,1762695948548,-500.0,0.0002455,2]
[393467900,1762695948567,-500.0,0.0002455,2]
[393467901,1762695948588,-500.0,0.0002455,2]
[393467902,1762695948606,-500.0,0.0002455,2]
[393467903,1762695948625,-167.19,0.00024606,2]
[393467904,1762695948643,-500.0,0.000248,2]
[393467905,1762695948662,-109.6062386,0.000248,2]
[393467906,1762696034084,-658.91635047,0.00024852,2]
[393467907,1762696043099,-76.87502783,0.00024852,2]
[393467908,1762696043121,-167.21628863,0.0002488,2]
[393467909,1762696043143,-36.13127727,0.00024909,2]
[393467911,1762696111758,169.10514771,0.00037028,60]
[393467913,1762696150093,-300.0,0.00024329,2]
[393467914,1762696150114,-479.58983178,0.0002433,2]
[393467932,1762696232028,-1509.40503142,0.0002433,2]
[393467941,1762696232204,-73.21292783,0.0002433,2]
[393468079,1762696238071,-121.76014557,0.0002433,2]
[393468134,1762696240178,-1453.2120002,0.0002433,2]
[393468135,1762696240321,-31.13584375,0.0002433,2]
[393468147,1762696244388,-1794.91984938,0.0002433,2]
[393468148,1762696244399,-507.34188192,0.0002433,2]
[393468186,1762696246471,-2122.5257733,0.0002433,2]
[393469209,1762696621764,313.0,0.00032876,120]
[393469220,1762697202121,-354.36752328,0.00023642,2]
[393469222,1762697345107,-1736.98802987,0.00023406,4]
[393469223,1762697362097,-274.68643826,0.00023399,5]
[393469224,1762697362117,-272.49064014,0.00023406,4]
[393469313,1762697432412,-230.36924111,0.00023406,4]
[393469314,1762697432422,-114.67735123,0.00023642,2]
[393469316,1762697432433,-809.89277551,0.00023642,2]
[393469318,1762697432443,-1195.0,0.00023642,2]
[393469319,1762697432452,-600.000001,0.00024,3]
[393469321,1762697432461,-300.0,0.00024329,2]
[393469322,1762697432470,-1200.0,0.00024329,2]
[393469323,1762697432481,-500.0,0.0002433,2]
[393469324,1762697432489,-8964.14843923,0.0002433,2]
[393469325,1762697432500,-2137.90156077,0.0002433,2]
[393469326,1762697432509,-239.90248548,0.00024706,5]
[393469327,1762697432518,-1221.2680021,0.00024799,2]
[393469328,1762697432527,-589.43987549,0.00024808,2]
[393469329,1762697432535,-336.22,0.00024857,2]
[393469330,1762697432544,-480.15899643,0.00024873,2]
[393469331,1762697432555,-19.84100357,0.00024873,2]
[393469332,1762697432563,-500.0,0.00024873,2]
[393469333,1762697432572,-500.0,0.00024873,2]
[393469334,1762697432581,-500.0,0.00024873,2]
[393469335,1762697432591,-500.0,0.00024873,2]
[393469336,1762697432601,-403.89,0.0002489,10]
[393469337,1762697432609,-336.58,0.0002489,10]
[393469338,1762697432619,-280.48,0.00024897,10]
[393469339,1762697432627,-233.73,0.00024897,10]
[393469340,1762697432636,-171.07224,0.00024899,2]
[393469341,1762697432645,-894.577969,0.00024899,7]
[393469342,1762697432655,-894.577969,0.00024899,7]
[393469343,1762697432664,-894.577969,0.00024899,7]
[393469345,1762697432673,-894.577969,0.00024899,7]
[393469347,1762697432683,-274.958846,0.00024899,7]
[393469348,1762697432692,-274.958846,0.00024899,7]
[393469349,1762697432703,-150.0,0.000249,2]
[393469350,1762697432713,-33872.1229659,0.000249,2]
[393469351,1762697432725,-894.577969,0.000249,7]
[393469353,1762697432735,-894.577969,0.000249,7]
[393469355,1762697432744,-894.577969,0.000249,7]
[393469357,1762697432754,-894.577969,0.000249,7]
[393469358,1762697432763,-259.58,0.000249,2]
[393469360,1762697432773,-259.58,0.000249,2]
[393469362,1762697432782,-259.58,0.000249,2]
[393469364,1762697432791,-259.58,0.000249,2]
[393469365,1762697432801,-259.58,0.000249,2]
[393469366,1762697432811,-259.58,0.000249,2]
[393469367,1762697432820,-259.58,0.000249,2]
[393469368,1762697432829,-259.58,0.000249,2]
[393469369,1762697432837,-259.58,0.000249,2]
[393469370,1762697432847,-259.58,0.000249,2]
[393469371,1762697432856,-259.58,0.000249,2]
[393469372,1762697432865,-259.58,0.000249,2]
[393469373,1762697432874,-259.58,0.000249,2]
[393469374,1762697432884,-259.58,0.000249,2]
[393469375,1762697432893,-259.58,0.000249,2]
[393469376,1762697432903,-259.58,0.000249,2]
[393469377,1762697432913,-259.58,0.000249,2]
[393469378,1762697432922,-259.58,0.000249,2]
[393469379,1762697432931,-259.58,0.000249,2]
[393469380,1762697432941,-259.58,0.000249,2]
[393469381,1762697432950,-259.58,0.000249,2]
[393469382,1762697432960,-259.58,0.000249,2]
[393469383,1762697432969,-259.58,0.000249,2]
[393469384,1762697432980,-274.958846,0.000249,7]
[393469385,1762697432990,-259.58,0.000249,2]
[393469386,1762697433002,-259.58,0.000249,2]
[393469387,1762697433017,-259.58,0.000249,2]
[393469388,1762697433027,-259.58,0.000249,2]
[393469389,1762697433037,-151.0,0.00024906,7]
[393469390,1762697433047,-151.0,0.00024906,7]
[393469391,1762697433056,-151.0,0.00024906,7]
[393469392,1762697433066,-1005.93129991,0.00024907,2]
[393469393,1762697433077,-151.0,0.00024907,7]
[393469394,1762697433088,-151.0,0.00024907,7]
[393469395,1762697433097,-160.114074,0.00024907,7]
[393469396,1762697433106,-151.0,0.00024907,2]
[393469397,1762697433115,-151.0,0.00024907,2]
[393469398,1762697433124,-159.28468,0.00024907,7]
[393469399,1762697433133,-151.0,0.00024907,2]
[393469400,1762697433142,-158.199281,0.00024907,7]
[393469401,1762697433151,-151.0,0.00024907,7]
[393469402,1762697433160,-151.0,0.00024907,7]
[393469403,1762697433169,-231.14859223,0.00024907,2]
[393469404,1762697433178,-157.120486,0.00024907,7]
[393469405,1762697433186,-894.577969,0.00024907,7]
[393469406,1762697433196,-894.577969,0.00024907,7]
[393469407,1762697433205,-894.577969,0.00024907,7]
[393469408,1762697433214,-894.577969,0.00024907,7]
[393469409,1762697433224,-500.0,0.00024907,2]
[393469410,1762697433233,-274.958846,0.00024907,7]
[393469411,1762697433242,-500.0,0.00024908,2]
[393469412,1762697433251,-151.0,0.00024908,7]
[393469413,1762697433259,-151.0,0.00024908,7]
[393469414,1762697433268,-151.0,0.00024908,7]
[393469415,1762697433277,-151.0,0.00024908,7]
[393469416,1762697433286,-151.0,0.00024908,7]
[393469417,1762697433296,-151.0,0.00024908,7]
[393469418,1762697433305,-152.884314,0.00024908,7]
[393469419,1762697433314,-151.0,0.00024908,7]
[393469420,1762697433324,-151.0,0.00024908,2]
[393469421,1762697433334,-151.0,0.00024908,2]
[393469422,1762697433343,-151.0,0.00024908,2]